[Event "Titled Tuesday Blitz July 11 Early 2023"]
[White "campochess"]
[Black "Larina, Maria"]
[BlackFideId "24113182"]
[WhiteElo "2115"]
[BlackElo "2190"]
[Result "0-1"]
[Round "10"]
[TimeControl "180+2"]
[Date "2023.07.11"]
[WhiteClock "0:00:10"]
[BlackClock "0:00:35"]
[Board "150"]

1. e4 {[%clk 0:02:59]}  c6 {[%clk 0:02:59]} 2. d4 {[%clk 0:02:58]}  d5 {[%clk 0:03:00]} 3. exd5 {[%clk 0:02:58]}  cxd5 {[%clk 0:03:01]} 4. c4 {[%clk 0:02:58]}  Nf6 {[%clk 0:03:01]} 5. Nc3 {[%clk 0:02:58]}  e6 {[%clk 0:03:02]} 6. Bg5 {[%clk 0:02:55]}  Bb4 {[%clk 0:02:55]} 7. Bxf6 {[%clk 0:02:46]}  Qxf6 {[%clk 0:02:46]} 8. Nf3 {[%clk 0:02:45]}  Nc6 {[%clk 0:02:44]} 9. cxd5 {[%clk 0:02:41]}  exd5 {[%clk 0:02:40]} 10. Bb5 {[%clk 0:02:40]}  O-O {[%clk 0:02:39]} 11. O-O {[%clk 0:02:39]}  Bg4 {[%clk 0:02:37]} 12. Nxd5 {[%clk 0:02:37]}  Qd6 {[%clk 0:02:35]} 13. Bxc6 {[%clk 0:02:36]}  bxc6 {[%clk 0:02:32]} 14. Nxb4 {[%clk 0:02:34]}  Qxb4 {[%clk 0:02:33]} 15. Qd2 {[%clk 0:02:33]}  Qd6 {[%clk 0:02:30]} 16. Ne5 {[%clk 0:02:31]}  Be6 {[%clk 0:02:29]} 17. Rfd1 {[%clk 0:02:30]}  Rfd8 {[%clk 0:02:27]} 18. Qa5 {[%clk 0:02:27]}  Bd5 {[%clk 0:02:23]} 19. Qc5 {[%clk 0:02:23]}  Qf6 {[%clk 0:02:19]} 20. Rd3 {[%clk 0:02:15]}  Rab8 {[%clk 0:02:14]} 21. b3 {[%clk 0:02:12]}  Rb7 {[%clk 0:02:02]} 22. Rg3 {[%clk 0:02:11]}  h5 {[%clk 0:01:54]} 23. h3 {[%clk 0:01:49]}  h4 {[%clk 0:01:54]} 24. Rg4 {[%clk 0:01:48]}  Be6 {[%clk 0:01:42]} 25. Rd1 {[%clk 0:01:45]}  Bxg4 {[%clk 0:01:40]} 26. hxg4 {[%clk 0:01:35]}  Rd6 {[%clk 0:01:14]} 27. g5 {[%clk 0:01:27]}  Qe6 {[%clk 0:01:07]} 28. Rd3 {[%clk 0:01:07]}  Rb5 {[%clk 0:01:07]} 29. Qc4 {[%clk 0:00:51]}  Rxe5 {[%clk 0:00:53]} 30. dxe5 {[%clk 0:00:49]}  Qxc4 {[%clk 0:00:53]} 31. Rxd6 {[%clk 0:00:47]}  Qc1+ {[%clk 0:00:50]} 32. Kh2 {[%clk 0:00:46]}  Qf4+ {[%clk 0:00:51]} 33. Kg1 {[%clk 0:00:40]}  Qxe5 {[%clk 0:00:48]} 34. Rxc6 {[%clk 0:00:39]}  Qxg5 {[%clk 0:00:46]} 35. Rc8+ {[%clk 0:00:37]}  Kh7 {[%clk 0:00:46]} 36. Rc7 {[%clk 0:00:37]}  h3 {[%clk 0:00:46]} 37. g3 {[%clk 0:00:34]}  Qd5 {[%clk 0:00:44]} 38. f3 {[%clk 0:00:29]}  Qxf3 {[%clk 0:00:44]} 39. Rc2 {[%clk 0:00:28]}  Qxg3+ {[%clk 0:00:41]} 40. Kh1 {[%clk 0:00:27]}  Qe1+ {[%clk 0:00:36]} 41. Kh2 {[%clk 0:00:26]}  Qe5+ {[%clk 0:00:36]} 42. Kg1 {[%clk 0:00:20]}  Qg5+ {[%clk 0:00:35]} 43. Kf1 {[%clk 0:00:18]}  Qf5+ {[%clk 0:00:35]} 44. Rf2 {[%clk 0:00:17]}  Qb1+ {[%clk 0:00:36]} 45. Ke2 {[%clk 0:00:16]}  Qxa2+ {[%clk 0:00:36]} 46. Kf1 {[%clk 0:00:16]}  Qb1+ {[%clk 0:00:36]} 47. Ke2 {[%clk 0:00:16]}  Qe4+ {[%clk 0:00:36]} 48. Kd2 {[%clk 0:00:16]}  Qd4+ {[%clk 0:00:35]} 49. Ke2 {[%clk 0:00:10]}  Qg4+ {[%clk 0:00:35]} 0-1


[Site "https://www.chess.com"]

[Event "Titled Tuesday Blitz July 11 Early 2023"]
[White "Ismayilova, Khanim"]
[Black "Lisjak, Zlatko"]
[WhiteFideId "13429019"]
[BlackFideId "14502186"]
[WhiteElo "2029"]
[BlackElo "2158"]
[Result "1-0"]
[Round "10"]
[TimeControl "180+2"]
[Date "2023.07.11"]
[WhiteClock "0:00:24"]
[BlackClock "0:00:02"]
[Board "151"]

1. c4 {[%clk 0:02:57]}  d6 {[%clk 0:02:56]} 2. d4 {[%clk 0:02:56]}  e5 {[%clk 0:02:55]} 3. dxe5 {[%clk 0:02:56]}  dxe5 {[%clk 0:02:53]} 4. Qxd8+ {[%clk 0:02:56]}  Kxd8 {[%clk 0:02:53]} 5. Bg5+ {[%clk 0:02:55]}  f6 {[%clk 0:02:52]} 6. Be3 {[%clk 0:02:52]}  Be6 {[%clk 0:02:53]} 7. Nd2 {[%clk 0:02:40]}  c6 {[%clk 0:02:49]} 8. O-O-O {[%clk 0:02:40]}  Kc7 {[%clk 0:02:48]} 9. Ngf3 {[%clk 0:02:39]}  Nd7 {[%clk 0:02:47]} 10. g3 {[%clk 0:02:35]}  Nh6 {[%clk 0:02:46]} 11. Bg2 {[%clk 0:02:34]}  Ng4 {[%clk 0:02:43]} 12. b3 {[%clk 0:02:22]}  a5 {[%clk 0:02:40]} 13. Nf1 {[%clk 0:02:19]}  Ba3+ {[%clk 0:02:32]} 14. Kc2 {[%clk 0:02:13]}  Bf5+ {[%clk 0:02:30]} 15. Kc3 {[%clk 0:02:09]}  b5 {[%clk 0:02:14]} 16. h3 {[%clk 0:02:06]}  Nxe3 {[%clk 0:01:56]} 17. Nxe3 {[%clk 0:02:06]}  Be4 {[%clk 0:01:48]} 18. Nxe5 {[%clk 0:01:44]}  Bxg2 {[%clk 0:01:35]} 19. Rxd7+ {[%clk 0:01:43]}  Kc8 {[%clk 0:01:34]} 20. Nxg2 {[%clk 0:01:40]}  fxe5 {[%clk 0:01:34]} 21. Rxg7 {[%clk 0:01:39]}  Bc5 {[%clk 0:01:31]} 22. Rd1 {[%clk 0:01:29]}  Bd4+ {[%clk 0:01:22]} 23. Kc2 {[%clk 0:01:28]}  a4 {[%clk 0:01:19]} 24. e3 {[%clk 0:01:25]}  axb3+ {[%clk 0:01:18]} 25. Kxb3 {[%clk 0:01:22]}  Bb6 {[%clk 0:01:02]} 26. cxb5 {[%clk 0:01:21]}  cxb5 {[%clk 0:01:01]} 27. Rd5 {[%clk 0:01:16]}  Rf8 {[%clk 0:00:53]} 28. Rxb5 {[%clk 0:01:10]}  Rxf2 {[%clk 0:00:51]} 29. Rxb6 {[%clk 0:00:39]}  Rxg2 {[%clk 0:00:50]} 30. Rf6 {[%clk 0:00:28]}  Rb8+ {[%clk 0:00:44]} 31. Kc3 {[%clk 0:00:25]}  Rf2 {[%clk 0:00:04]} 32. Rxf2 {[%clk 0:00:24]}  Kd8 {[%clk 0:00:02]} 33. Rf8# {[%clk 0:00:24]} 1-0


[Site "https://www.chess.com"]

[Event "Titled Tuesday Blitz July 11 Early 2023"]
[White "Guzman Moneo, Alberto"]
[Black "Goughfather"]
[WhiteFideId "2209616"]
[WhiteElo "2416"]
[BlackElo "2021"]
[Result "1-0"]
[Round "10"]
[TimeControl "180+2"]
[Date "2023.07.11"]
[WhiteClock "0:01:41"]
[BlackClock "0:00:31"]
[Board "154"]

1. e4 {[%clk 0:03:00]}  c6 {[%clk 0:02:59]} 2. Nf3 {[%clk 0:03:00]}  d5 {[%clk 0:02:59]} 3. d3 {[%clk 0:03:00]}  dxe4 {[%clk 0:02:59]} 4. dxe4 {[%clk 0:03:01]}  Qxd1+ {[%clk 0:02:59]} 5. Kxd1 {[%clk 0:03:02]}  f6 {[%clk 0:02:58]} 6. Ne1 {[%clk 0:02:58]}  e5 {[%clk 0:02:56]} 7. Bc4 {[%clk 0:02:54]}  Nd7 {[%clk 0:02:44]} 8. Nd3 {[%clk 0:02:53]}  Nc5 {[%clk 0:02:37]} 9. f3 {[%clk 0:02:51]}  Nxd3 {[%clk 0:02:35]} 10. cxd3 {[%clk 0:02:50]}  Bc5 {[%clk 0:02:31]} 11. Ke2 {[%clk 0:02:50]}  Ke7 {[%clk 0:02:28]} 12. Nd2 {[%clk 0:02:48]}  Be6 {[%clk 0:02:27]} 13. Nb3 {[%clk 0:02:42]}  Bb6 {[%clk 0:02:24]} 14. a4 {[%clk 0:02:42]}  a6 {[%clk 0:02:23]} 15. Be3 {[%clk 0:02:36]}  Bxe3 {[%clk 0:02:22]} 16. Kxe3 {[%clk 0:02:36]}  Nh6 {[%clk 0:02:22]} 17. Bxe6 {[%clk 0:02:36]}  Kxe6 {[%clk 0:02:20]} 18. Nc5+ {[%clk 0:02:36]}  Ke7 {[%clk 0:02:09]} 19. Nxb7 {[%clk 0:02:34]}  Rhb8 {[%clk 0:02:09]} 20. Nc5 {[%clk 0:02:18]}  Rxb2 {[%clk 0:02:03]} 21. Rhb1 {[%clk 0:02:15]}  Rab8 {[%clk 0:02:03]} 22. Rxb2 {[%clk 0:02:14]}  Rxb2 {[%clk 0:02:03]} 23. Nxa6 {[%clk 0:02:14]}  Rxg2 {[%clk 0:02:02]} 24. Nb4 {[%clk 0:02:05]}  f5 {[%clk 0:01:33]} 25. d4 {[%clk 0:01:53]}  exd4+ {[%clk 0:01:21]} 26. Kxd4 {[%clk 0:01:53]}  Kd6 {[%clk 0:01:18]} 27. e5+ {[%clk 0:01:49]}  Kc7 {[%clk 0:01:03]} 28. a5 {[%clk 0:01:49]}  Rb2 {[%clk 0:00:55]} 29. Kc3 {[%clk 0:01:45]}  Rxh2 {[%clk 0:00:44]} 30. a6 {[%clk 0:01:45]}  Kb8 {[%clk 0:00:44]} 31. Nxc6+ {[%clk 0:01:43]}  Ka8 {[%clk 0:00:31]} 32. Rb1 {[%clk 0:01:41]} 1-0


[Site "https://www.chess.com"]

[Event "Titled Tuesday Blitz July 11 Early 2023"]
[White "Floresvillar Gonzalez, Luis Migu"]
[Black "Skiadopoulos, Nikolaos"]
[WhiteFideId "5100542"]
[BlackFideId "4200772"]
[WhiteElo "2081"]
[BlackElo "1916"]
[Result "1/2-1/2"]
[Round "10"]
[TimeControl "180+2"]
[Date "2023.07.11"]
[WhiteClock "0:00:14"]
[BlackClock "0:00:07"]
[Board "156"]

1. d4 {[%clk 0:03:00]}  Nf6 {[%clk 0:02:59]} 2. Bf4 {[%clk 0:02:59]}  e6 {[%clk 0:02:55]} 3. Nd2 {[%clk 0:02:57]}  d5 {[%clk 0:02:54]} 4. c3 {[%clk 0:02:55]}  Bd6 {[%clk 0:02:52]} 5. e3 {[%clk 0:02:54]}  Bxf4 {[%clk 0:02:51]} 6. exf4 {[%clk 0:02:54]}  O-O {[%clk 0:02:51]} 7. Ngf3 {[%clk 0:02:53]}  c5 {[%clk 0:02:50]} 8. dxc5 {[%clk 0:02:51]}  Nbd7 {[%clk 0:02:33]} 9. b4 {[%clk 0:02:49]}  a5 {[%clk 0:02:32]} 10. a3 {[%clk 0:02:48]}  Ne4 {[%clk 0:02:28]} 11. Nxe4 {[%clk 0:02:46]}  dxe4 {[%clk 0:02:27]} 12. Ne5 {[%clk 0:02:44]}  axb4 {[%clk 0:02:25]} 13. axb4 {[%clk 0:02:41]}  Rxa1 {[%clk 0:02:24]} 14. Qxa1 {[%clk 0:02:40]}  Nf6 {[%clk 0:02:06]} 15. Be2 {[%clk 0:02:35]}  Nd5 {[%clk 0:02:04]} 16. g3 {[%clk 0:02:32]}  f6 {[%clk 0:01:53]} 17. Nc4 {[%clk 0:02:29]}  e5 {[%clk 0:01:53]} 18. fxe5 {[%clk 0:02:25]}  fxe5 {[%clk 0:01:52]} 19. O-O {[%clk 0:02:24]}  Bh3 {[%clk 0:01:50]} 20. Re1 {[%clk 0:02:22]}  Qf6 {[%clk 0:01:49]} 21. Rf1 {[%clk 0:01:41]}  Bxf1 {[%clk 0:01:40]} 22. Qxf1 {[%clk 0:01:41]}  Nxc3 {[%clk 0:01:34]} 23. Nd6 {[%clk 0:01:41]}  b6 {[%clk 0:01:27]} 24. Bc4+ {[%clk 0:01:34]}  Kh8 {[%clk 0:01:26]} 25. Qe1 {[%clk 0:01:29]}  bxc5 {[%clk 0:01:18]} 26. bxc5 {[%clk 0:01:29]}  Na4 {[%clk 0:01:13]} 27. Nxe4 {[%clk 0:01:27]}  Qc6 {[%clk 0:01:06]} 28. Qe3 {[%clk 0:01:17]}  Rc8 {[%clk 0:01:01]} 29. Nd6 {[%clk 0:01:05]}  Nxc5 {[%clk 0:00:54]} 30. Nxc8 {[%clk 0:01:04]}  Qxc8 {[%clk 0:00:54]} 31. Bf1 {[%clk 0:01:02]}  e4 {[%clk 0:00:52]} 32. h4 {[%clk 0:00:59]}  h6 {[%clk 0:00:51]} 33. Bg2 {[%clk 0:00:59]}  Qf5 {[%clk 0:00:50]} 34. Kh2 {[%clk 0:00:58]}  Kh7 {[%clk 0:00:48]} 35. Bh3 {[%clk 0:00:57]}  Qe5 {[%clk 0:00:46]} 36. Bg2 {[%clk 0:00:55]}  Qf5 {[%clk 0:00:45]} 37. Bh3 {[%clk 0:00:55]}  Qe5 {[%clk 0:00:45]} 38. Bg4 {[%clk 0:00:54]}  Nd3 {[%clk 0:00:40]} 39. Be2 {[%clk 0:00:49]}  Nc5 {[%clk 0:00:38]} 40. h5 {[%clk 0:00:48]}  Ne6 {[%clk 0:00:35]} 41. Bd3 {[%clk 0:00:41]}  Nc5 {[%clk 0:00:33]} 42. Bc2 {[%clk 0:00:39]}  Kg8 {[%clk 0:00:32]} 43. Bb3+ {[%clk 0:00:35]}  Kf8 {[%clk 0:00:30]} 44. Bc2 {[%clk 0:00:34]}  Qxh5+ {[%clk 0:00:30]} 45. Kg2 {[%clk 0:00:33]}  Qe5 {[%clk 0:00:28]} 46. f4 {[%clk 0:00:27]}  Qd5 {[%clk 0:00:22]} 47. Kh3 {[%clk 0:00:23]}  Kg8 {[%clk 0:00:19]} 48. g4 {[%clk 0:00:23]}  Kh7 {[%clk 0:00:18]} 49. g5 {[%clk 0:00:20]}  Qf5+ {[%clk 0:00:15]} 50. Kg3 {[%clk 0:00:19]}  Nd3 {[%clk 0:00:13]} 51. Bxd3 {[%clk 0:00:18]}  exd3 {[%clk 0:00:13]} 52. gxh6 {[%clk 0:00:18]}  Kxh6 {[%clk 0:00:13]} 53. Kf3 {[%clk 0:00:17]}  Qh3+ {[%clk 0:00:12]} 54. Ke4 {[%clk 0:00:16]}  Qxe3+ {[%clk 0:00:07]} 55. Kxe3 {[%clk 0:00:16]}  Kh5 {[%clk 0:00:08]} 56. Kxd3 {[%clk 0:00:16]}  Kg4 {[%clk 0:00:09]} 57. Ke4 {[%clk 0:00:17]}  g6 {[%clk 0:00:09]} 58. Ke5 {[%clk 0:00:17]}  Kf3 {[%clk 0:00:07]} 59. f5 {[%clk 0:00:14]}  gxf5 {[%clk 0:00:07]} 60. Kxf5 {[%clk 0:00:14]} 1/2-1/2


[Site "https://www.chess.com"]

[Event "Titled Tuesday Blitz July 11 Early 2023"]
[White "Oparin, Grigoriy"]
[Black "Nakamura, Hikaru"]
[WhiteFideId "24125890"]
[BlackFideId "2016192"]
[WhiteElo "2974"]
[BlackElo "3250"]
[Result "1-0"]
[Round "11"]
[TimeControl "180+2"]
[Date "2023.07.11"]
[WhiteClock "0:00:18"]
[BlackClock "0:00:18"]
[Board "1"]

1. d4 {[%clk 0:03:00]}  a6 {[%clk 0:02:59]} 2. e4 {[%clk 0:03:00]}  c6 {[%clk 0:02:58]} 3. Bd3 {[%clk 0:03:00]}  d5 {[%clk 0:02:58]} 4. e5 {[%clk 0:02:59]}  c5 {[%clk 0:02:57]} 5. c3 {[%clk 0:02:56]}  Nc6 {[%clk 0:02:56]} 6. Ne2 {[%clk 0:02:56]}  e6 {[%clk 0:02:46]} 7. O-O {[%clk 0:02:55]}  Nge7 {[%clk 0:02:44]} 8. a3 {[%clk 0:02:50]}  cxd4 {[%clk 0:02:37]} 9. cxd4 {[%clk 0:02:49]}  Nf5 {[%clk 0:02:38]} 10. Bxf5 {[%clk 0:02:38]}  exf5 {[%clk 0:02:38]} 11. Nbc3 {[%clk 0:02:39]}  Be6 {[%clk 0:02:39]} 12. Be3 {[%clk 0:02:33]}  Be7 {[%clk 0:02:32]} 13. Nf4 {[%clk 0:02:31]}  g5 {[%clk 0:02:28]} 14. Nxe6 {[%clk 0:01:49]}  fxe6 {[%clk 0:02:28]} 15. Qh5+ {[%clk 0:01:49]}  Kd7 {[%clk 0:02:28]} 16. Rac1 {[%clk 0:01:39]}  f4 {[%clk 0:01:52]} 17. Bd2 {[%clk 0:01:39]}  Qg8 {[%clk 0:01:46]} 18. Na4 {[%clk 0:01:19]}  Rf8 {[%clk 0:01:28]} 19. Bb4 {[%clk 0:00:56]}  Qg6 {[%clk 0:01:20]} 20. Qd1 {[%clk 0:00:54]}  f3 {[%clk 0:01:06]} 21. Bxe7 {[%clk 0:00:46]}  Kxe7 {[%clk 0:01:06]} 22. Qb3 {[%clk 0:00:43]}  Rb8 {[%clk 0:01:06]} 23. Qxf3 {[%clk 0:00:40]}  Rhf8 {[%clk 0:01:01]} 24. Qc3 {[%clk 0:00:38]}  Rf4 {[%clk 0:01:01]} 25. Rfd1 {[%clk 0:00:30]}  Qf5 {[%clk 0:00:45]} 26. Rd2 {[%clk 0:00:29]}  Rf8 {[%clk 0:00:44]} 27. Rf1 {[%clk 0:00:28]}  Qg4 {[%clk 0:00:41]} 28. h3 {[%clk 0:00:25]}  Qf5 {[%clk 0:00:23]} 29. Nc5 {[%clk 0:00:26]}  g4 {[%clk 0:00:21]} 30. Nxb7 {[%clk 0:00:18]}  Rc8 {[%clk 0:00:22]} 31. Nd6 {[%clk 0:00:18]}  Qf8 {[%clk 0:00:18]} 32. Nxc8+ {[%clk 0:00:18]}  Qxc8 {[%clk 0:00:18]} 33. Rc1 {[%clk 0:00:18]}  gxh3 {[%clk 0:00:18]} 34. Qxc6 {[%clk 0:00:18]} 1-0


[Site "https://www.chess.com"]

[Event "Titled Tuesday Blitz July 11 Early 2023"]
[White "Dubov, Daniil"]
[Black "Kollars, Dmitrij"]
[WhiteFideId "24126055"]
[BlackFideId "12909572"]
[WhiteElo "3082"]
[BlackElo "3011"]
[Result "1-0"]
[Round "11"]
[TimeControl "180+2"]
[Date "2023.07.11"]
[WhiteClock "0:00:04"]
[BlackClock "0:00:01"]
[Board "3"]

1. e4 {[%clk 0:03:00]}  e5 {[%clk 0:02:59]} 2. Nf3 {[%clk 0:03:00]}  Nc6 {[%clk 0:03:00]} 3. Nc3 {[%clk 0:03:00]}  Nf6 {[%clk 0:03:00]} 4. Bc4 {[%clk 0:03:00]}  Nxe4 {[%clk 0:02:59]} 5. O-O {[%clk 0:03:00]}  Nxc3 {[%clk 0:02:53]} 6. dxc3 {[%clk 0:03:00]}  f6 {[%clk 0:02:50]} 7. b4 {[%clk 0:02:59]}  d6 {[%clk 0:02:38]} 8. a4 {[%clk 0:02:57]}  Qe7 {[%clk 0:02:34]} 9. a5 {[%clk 0:02:51]}  Be6 {[%clk 0:02:30]} 10. Bd5 {[%clk 0:02:22]}  Bxd5 {[%clk 0:01:28]} 11. Qxd5 {[%clk 0:02:22]}  Nd8 {[%clk 0:01:23]} 12. a6 {[%clk 0:02:16]}  c6 {[%clk 0:01:23]} 13. axb7 {[%clk 0:02:08]}  Qxb7 {[%clk 0:01:24]} 14. Qb3 {[%clk 0:01:57]}  Be7 {[%clk 0:01:24]} 15. Be3 {[%clk 0:01:52]}  Nf7 {[%clk 0:01:06]} 16. Ra4 {[%clk 0:01:43]}  O-O {[%clk 0:01:00]} 17. Rfa1 {[%clk 0:01:42]}  a6 {[%clk 0:01:00]} 18. Qa2 {[%clk 0:01:37]}  f5 {[%clk 0:00:42]} 19. Rxa6 {[%clk 0:01:34]}  Rxa6 {[%clk 0:00:43]} 20. Qxa6 {[%clk 0:01:34]}  Qd7 {[%clk 0:00:44]} 21. Nd2 {[%clk 0:01:09]}  f4 {[%clk 0:00:39]} 22. Bb6 {[%clk 0:01:08]}  Ng5 {[%clk 0:00:39]} 23. f3 {[%clk 0:01:05]}  h5 {[%clk 0:00:36]} 24. Qd3 {[%clk 0:01:02]}  Qe6 {[%clk 0:00:34]} 25. Bf2 {[%clk 0:00:57]}  d5 {[%clk 0:00:33]} 26. Re1 {[%clk 0:00:50]}  Bf6 {[%clk 0:00:31]} 27. c4 {[%clk 0:00:48]}  Re8 {[%clk 0:00:23]} 28. cxd5 {[%clk 0:00:11]}  cxd5 {[%clk 0:00:24]} 29. h4 {[%clk 0:00:11]}  Nf7 {[%clk 0:00:13]} 30. c4 {[%clk 0:00:10]}  dxc4 {[%clk 0:00:12]} 31. Qxc4 {[%clk 0:00:09]}  Qxc4 {[%clk 0:00:10]} 32. Nxc4 {[%clk 0:00:10]}  Rb8 {[%clk 0:00:10]} 33. Rb1 {[%clk 0:00:09]}  Rb5 {[%clk 0:00:05]} 34. Na3 {[%clk 0:00:09]}  Rb7 {[%clk 0:00:06]} 35. b5 {[%clk 0:00:09]}  Nd6 {[%clk 0:00:06]} 36. Bc5 {[%clk 0:00:08]}  Nc8 {[%clk 0:00:04]} 37. b6 {[%clk 0:00:07]}  Bd8 {[%clk 0:00:03]} 38. Nc4 {[%clk 0:00:06]}  Rb8 {[%clk 0:00:03]} 39. b7 {[%clk 0:00:05]}  Ne7 {[%clk 0:00:01]} 40. Bd6 {[%clk 0:00:04]} 1-0


[Site "https://www.chess.com"]

[Event "Titled Tuesday Blitz July 11 Early 2023"]
[White "Turski, Bartlomiej"]
[Black "Aravindh, Chithambaram VR."]
[WhiteFideId "21810567"]
[BlackFideId "5072786"]
[WhiteElo "2896"]
[BlackElo "2939"]
[Result "0-1"]
[Round "11"]
[TimeControl "180+2"]
[Date "2023.07.11"]
[WhiteClock "0:00:03"]
[BlackClock "0:00:05"]
[Board "8"]

1. e4 {[%clk 0:02:34]}  c6 {[%clk 0:02:58]} 2. d4 {[%clk 0:02:34]}  d5 {[%clk 0:02:59]} 3. Nc3 {[%clk 0:02:35]}  dxe4 {[%clk 0:02:59]} 4. Nxe4 {[%clk 0:02:36]}  Nf6 {[%clk 0:02:58]} 5. Nxf6+ {[%clk 0:02:36]}  exf6 {[%clk 0:02:58]} 6. c3 {[%clk 0:02:36]}  Bd6 {[%clk 0:02:58]} 7. Bd3 {[%clk 0:02:35]}  O-O {[%clk 0:02:59]} 8. Qc2 {[%clk 0:02:35]}  Re8+ {[%clk 0:02:59]} 9. Ne2 {[%clk 0:02:36]}  h5 {[%clk 0:02:59]} 10. O-O {[%clk 0:02:36]}  h4 {[%clk 0:02:58]} 11. Nf4 {[%clk 0:02:36]}  Qc7 {[%clk 0:02:40]} 12. g3 {[%clk 0:02:29]}  Nd7 {[%clk 0:02:38]} 13. Qd1 {[%clk 0:02:29]}  Nf8 {[%clk 0:02:35]} 14. Qh5 {[%clk 0:02:27]}  g6 {[%clk 0:02:15]} 15. Nxg6 {[%clk 0:02:27]}  fxg6 {[%clk 0:02:12]} 16. Bxg6 {[%clk 0:02:28]}  Re7 {[%clk 0:02:05]} 17. Bh6 {[%clk 0:02:27]}  Be6 {[%clk 0:01:40]} 18. Rae1 {[%clk 0:02:25]}  hxg3 {[%clk 0:01:35]} 19. fxg3 {[%clk 0:02:13]}  Bc4 {[%clk 0:01:26]} 20. Rxe7 {[%clk 0:01:35]}  Qxe7 {[%clk 0:01:27]} 21. Rc1 {[%clk 0:01:29]}  Qe2 {[%clk 0:01:12]} 22. Bf7+ {[%clk 0:01:07]}  Kh7 {[%clk 0:01:11]} 23. Qh4 {[%clk 0:00:52]}  Bxf7 {[%clk 0:01:08]} 24. Qxf6 {[%clk 0:00:37]}  Ne6 {[%clk 0:00:54]} 25. Qxf7+ {[%clk 0:00:27]}  Kxh6 {[%clk 0:00:53]} 26. Rf1 {[%clk 0:00:28]}  Qe3+ {[%clk 0:00:46]} 27. Kh1 {[%clk 0:00:27]}  Qe4+ {[%clk 0:00:44]} 28. Kg1 {[%clk 0:00:27]}  Rf8 {[%clk 0:00:06]} 29. Rf6+ {[%clk 0:00:21]}  Kg5 {[%clk 0:00:06]} 30. Rxe6 {[%clk 0:00:03]}  Qb1+ {[%clk 0:00:05]} 0-1


[Site "https://www.chess.com"]

[Event "Titled Tuesday Blitz July 11 Early 2023"]
[White "Vokhidov, Shamsiddin"]
[Black "Bachmann, Axel"]
[WhiteFideId "14204223"]
[BlackFideId "3700488"]
[WhiteElo "2925"]
[BlackElo "2804"]
[Result "1-0"]
[Round "11"]
[TimeControl "180+2"]
[Date "2023.07.11"]
[WhiteClock "0:00:56"]
[BlackClock "0:00:49"]
[Board "10"]

1. e4 {[%clk 0:03:00]}  g6 {[%clk 0:03:00]} 2. d4 {[%clk 0:03:01]}  Bg7 {[%clk 0:03:01]} 3. Nf3 {[%clk 0:03:01]}  d6 {[%clk 0:03:01]} 4. Bc4 {[%clk 0:03:02]}  e6 {[%clk 0:02:58]} 5. c3 {[%clk 0:03:01]}  Ne7 {[%clk 0:02:56]} 6. Qe2 {[%clk 0:03:00]}  a6 {[%clk 0:02:54]} 7. Bd3 {[%clk 0:03:00]}  b6 {[%clk 0:02:51]} 8. Nbd2 {[%clk 0:02:56]}  Bb7 {[%clk 0:02:51]} 9. Nf1 {[%clk 0:02:57]}  h6 {[%clk 0:02:50]} 10. Ng3 {[%clk 0:02:57]}  Nd7 {[%clk 0:02:51]} 11. O-O {[%clk 0:02:57]}  c5 {[%clk 0:02:48]} 12. Be3 {[%clk 0:02:56]}  Nf6 {[%clk 0:02:46]} 13. h3 {[%clk 0:02:54]}  Qc7 {[%clk 0:02:39]} 14. Bf4 {[%clk 0:02:47]}  g5 {[%clk 0:02:28]} 15. Bxd6 {[%clk 0:02:45]}  Qxd6 {[%clk 0:02:26]} 16. e5 {[%clk 0:02:46]}  Qc7 {[%clk 0:01:59]} 17. exf6 {[%clk 0:02:45]}  Bxf6 {[%clk 0:02:00]} 18. Nh5 {[%clk 0:02:46]}  Nd5 {[%clk 0:02:00]} 19. Be4 {[%clk 0:02:21]}  Be7 {[%clk 0:01:55]} 20. Ne5 {[%clk 0:02:16]}  Bd6 {[%clk 0:01:20]} 21. Bxd5 {[%clk 0:02:07]}  Bxd5 {[%clk 0:01:21]} 22. Nf6+ {[%clk 0:02:07]}  Kf8 {[%clk 0:01:21]} 23. Nxd5 {[%clk 0:01:03]}  exd5 {[%clk 0:01:22]} 24. Rfe1 {[%clk 0:01:04]}  Re8 {[%clk 0:01:12]} 25. Qxa6 {[%clk 0:01:01]}  Kg7 {[%clk 0:01:11]} 26. Ng4 {[%clk 0:00:57]}  Bh2+ {[%clk 0:00:49]} 27. Nxh2 {[%clk 0:00:56]} 1-0


[Site "https://www.chess.com"]